Cogmind - Beta 17 @@@ ROGUE MODE // 2026.07.06 @ 22:57:41 Player: VFX Result: Destroyed by G-50 Soldier with Heavy Laser Performance ------------- Evolutions (2) 1000 Regions Visited (4) 800 Robots Destroyed (30) 150 Value Destroyed (850) 850 Prototype IDs (2) 40 Alien Tech Used (0) 0 Bonus (158) 158 TOTAL SCORE: 2998 Bonus ------- Pacifist 200 Friendly Fire -42 Cogmind --------- Core Integrity 0/550 Matter 285/300 Energy 76/100 System Corruption 2% Temperature Cool (9) Movement Treading (145) Location -8/Materials Parts ------- > --- POWER (2) -------- (None) > --- PROPULSION (4) --- Advanced Treads Advanced Treads > --- UTILITY (3) ------ Large Storage Unit > --- WEAPON (2) ------- Datajack > --- INVENTORY (15) --- Heat Sink Visual Processing Unit Salvage Targeting Computer ECM Suite Field Recycling Unit (0) Peak State ------------ > --- POWER ------------ Light Ion Engine > --- PROPULSION ------- Aluminum Leg Aluminum Leg Aluminum Leg Aluminum Leg > --- UTILITY ---------- Large Storage Unit ECM Suite > --- WEAPON ----------- Medium Laser Spread Laser > --- INVENTORY -------- Ion Engine Ion Engine Light Ion Engine Light Ion Engine Light Ion Engine Aluminum Leg Heat Sink Visual Processing Unit Seismic Detector Medium Laser Light Cannon Grenade Launcher Datajack Mining Laser [Rating: 11] Favorites ----------- Power Light Ion Engine Engine Light Ion Engine Power Core Light Nuclear Core Propulsion Aluminum Leg Treads Light Treads Leg Aluminum Leg Wheel Compact Wheel Utility Large Storage Unit Device ECM Suite Storage Large Storage Unit Weapon Light Assault Rifle Energy Gun Medium Laser Ballistic Gun Light Assault Rifle Ballistic Cannon Light Cannon Launcher Grenade Launcher Special Weapon Mining Laser Impact Weapon Maul Special Melee Weapon Datajack Build | -11 -10 -9 -9 -8 ------- Run | Yrd Mat Mat Min Mat Slots Evolved 4 | . . 2 . 2 Power 1 | . . . . 1 Propulsion 2 | . . 2 . . Utility 1 | . . . . 1 Weapon . | . . . . . Parts Attached 37 | 7 2 8 8 12 Power 8 | 1 . 2 1 4 Engine 7 | 1 . 2 1 3 Core 1 | . . . . 1 Reactor . | . . . . . Propulsion 12 | 2 . 4 . 6 Treads 3 | . . . . 3 Leg 6 | 2 . 4 . . Wheel 3 | . . . . 3 Hover . | . . . . . Flight . | . . . . . Utility 5 | 1 2 . 1 1 Device 3 | . 1 . 1 1 Storage 2 | 1 1 . . . Processor . | . . . . . Hackware . | . . . . . Protection . | . . . . . Artifact . | . . . . . Weapon 12 | 3 . 2 6 1 Energy Gun 3 | 2 . 1 . . Energy Cannon . | . . . . . Ballistic Gun 3 | 1 . . 2 . Ballistic Cannon 1 | . . . 1 . Launcher 2 | . . 1 1 . Special Weapon 1 | . . . 1 . Impact Weapon 1 | . . . 1 . Slashing Weapon . | . . . . . Piercing Weapon . | . . . . . Special Melee Weapon 1 | . . . . 1 Unidentified Prototypes . | . . . . . Parts Lost 28 | . . 2 10 16 Power 7 | . . . 2 5 Propulsion 10 | . . 1 5 4 Utility 2 | . . . . 2 Weapon 9 | . . 1 3 5 Highest Loss Streak 11 | . . 2 5 11 To Critical Strikes . | . . . . . Average Backups 10 | 1 3 11 13 9 Power 2 | . 1 3 3 1 Propulsion . | . . . . . Utility 2 | . . 1 4 5 Weapon 3 | . 2 3 4 1 Tool/Special . | . . . . . Unused Backups 4 | . . . . 4 Power . | . . . . . Propulsion . | . . . . . Utility 4 | . . . . 4 Weapon . | . . . . . Tool/Special . | . . . . . Average Slot Usage (%) 77 | . 96 91 71 41 Engine 10 | . 14 10 9 11 Leg 26 | . 28 39 22 . Device 9 | . 10 11 11 4 Storage 11 | . 14 11 11 9 Energy Gun 6 | . 14 11 . 2 Ballistic Gun 7 | . 14 7 6 4 Ballistic Cannon 2 | . . . 5 1 Launcher 1 | . . . 3 2 Peak Build Rating 11 | 6 7 11 11 9 Average Rating 7 | 4 6 9 8 5 On Entrance 5 | . 6 7 10 5 Avg Prop Armor Cover (%) 12 | . . 12 . . Naked Turns . | . . . . . Heaviest Build 33 | 12 28 28 31 33 Greatest Support 44 | 20 20 40 40 44 Greatest Overweight (x) 10 | 3 1 8 8 10 Average Overweight (x) . | . . . . 4 Largest Inventory Capacity 15 | 8 15 15 15 15 Average Capacity 14 | 7 13 15 15 15 Most Carried 15 | 2 5 15 15 12 Average Carried 10 | 1 3 11 13 9 Final Capacity 15 | 8 15 15 15 15 Final Carried 14 | 2 5 14 13 5 Class Distribution -------------------- 100% | Mutant Dominant Class ---------------- Mutant | -10/Materials Mutant | -9/Materials Mutant | -9/Mines Mutant | -8/Materials Resources | -11 -10 -9 -9 -8 ----------- Run | Yrd Mat Mat Min Mat Matter Collected 749 | 255 . 142 181 171 Remotely 66 | . . . . 66 Salvage Created 830 | . . 375 78 377 Parts 44 | . . 20 8 16 Haulers Intercepted . | . . . . . Recyclers Shooed . | . . . . . Parts Field Recycled . | . . . . . Retrieved Matter . | . . . . . Parts Self-Destructed . | . . . . . Prevented . | . . . . . Parts Restored . | . . . . . Kills | -11 -10 -9 -9 -8 ------- Run | Yrd Mat Mat Min Mat Combat Hostiles Destroyed 28 | . . 13 8 7 Melee 2 | . . . . 2 Guns 16 | . . 11 1 4 Cannons 4 | . . . 4 . AOE 5 | . . 2 3 . Classes Destroyed 6 | . . 4 1 1 Recycler 1 | . . . . 1 Watcher 1 | . . 1 . . Swarmer 11 | . . 7 4 . Grunt 10 | . . 3 2 5 Duelist 1 | . . . 1 . Sentry 5 | . . 3 . 2 Best Kill Streak 5 | . . 5 2 3 Combat Bots Only 4 | . . 4 2 3 Max Kills in Single Turn 2 | . . 2 1 1 Gunslinging . | . . . . . Exploded 2 | . . 2 1 . Melee 1 | . . . . 1 Uniques/NPCs Destroyed 1 | . . . 1 . YI-UF0 (-9/Mines) Combat | -11 -10 -9 -9 -8 -------- Run | Yrd Mat Mat Min Mat Hostile Shots Fired 327 | . . 99 81 147 Missed 103 | . . 30 24 49 Hits 224 | . . 69 57 98 Melee 1 | . . . 1 . Projectile 223 | . . 69 56 98 AOE 14 | . . . 14 . Critical Strikes 8 | . . 1 1 6 Damage Taken 3257 | . . 788 900 1569 Core 948 | . . 146 246 556 Absorbed by Shields . | . . . . . Regen/Repaired (Parts) 85 | . . 85 . . Core Remaining (%) 67 | 100 100 . 2 . Volleys Fired 101 | . . 44 33 24 Largest 2 | . . 2 2 2 Hottest 115 | . . 115 100 70 Shots Fired 150 | . . 77 36 37 Gun 119 | . . 76 13 30 Cannon 15 | . . . 8 7 Launcher 8 | . . 1 7 . Special 8 | . . . 8 . Kinetic 72 | . . 32 18 22 Thermal 70 | . . 44 11 15 Explosive 8 | . . 1 7 . Electromagnetic . | . . . . . Robot Hit Streak 23 | . . 23 8 12 Robot Miss Streak 7 | . . 7 6 2 Penetration Max . | . . . . . Secondary Targets 1 | . . . . 1 Max Gunslinging Chain 1 | . . . . 1 Shots Hit Robots 94 | . . 41 20 33 Core Hits 63 | . . 31 16 16 Critical Kills . | . . . . . Critical Parts Destroyed 1 | . . . . 1 Critical Strikes 8 | . . 3 . 5 Burn 7 | . . 3 . 4 Smash 1 | . . . . 1 Melee Attacks 12 | . . . 5 7 Impact 10 | . . . 5 5 Slashing . | . . . . . Piercing . | . . . . . Sneak Attacks 2 | . . . . 2 Combat Hostiles . | . . . . . Follow-up Attacks . | . . . . . Damage Inflicted 1550 | . . 532 491 527 Guns 791 | . . 472 83 236 Cannons 228 | . . . 126 102 Explosions 249 | . . 57 192 . Melee 224 | . . . 42 182 Ramming 10 | . . 3 . 7 Kinetic 467 | . . 111 168 188 Thermal 600 | . . 361 89 150 Explosive 249 | . . 57 192 . Electromagnetic . | . . . . . Impact 224 | . . . 42 182 Slashing . | . . . . . Piercing . | . . . . . Highest Corruption 2 | . . . . 2 Average Corruption 2 | . . . . 2 Corruption Purged . | . . . . . Corruption Blocked . | . . . . . Overload Shots . | . . . . . Overflow Damage 46 | . . . 2 44 Projectiles . | . . . . . Explosions . | . . . . . Melee 46 | . . . 2 44 Knockbacks 8 | . . . 4 4 Impact 1 | . . . . 1 Kinetic 7 | . . . 4 3 Secondary . | . . . . . Self-Inflicted Damage 75 | . . . 72 3 Shots 6 | . . . 6 . Rammed 1 | . . . . 1 Targets Rammed 2 | . . 1 . 1 Kicked 1 | . . 1 . . Crushed . | . . . . . Highest Temperature 108 | . . 108 36 90 Average Temperature 25 | . . 27 11 31 Received Heat Transfer 1311 | . . 288 42 981 Siege Activations . | . . . . . Martial Activations . | . . . . . Shielding Activations . | . . . . . Robots Disrupted . | . . . . . Combat Hostiles . | . . . . . Robots Corrupted 1 | . . . . 1 Combat Hostiles 1 | . . . . 1 Parts Fried 1 | . . . . 1 Impact Corruptions 2 | . . . 1 1 Robots Melted . | . . . . . Combat Hostiles . | . . . . . Parts Melted 5 | . . 2 . 3 Heat Transferred 1948 | . . 1053 155 740 Parts Sabotaged . | . . . . . Parts Stolen . | . . . . . Parts Stripped . | . . . . . Power Chain Reactions . | . . . . . Alert | -11 -10 -9 -9 -8 ------- Run | Yrd Mat Mat Min Mat Maximum Alert Level . | . . . . . Low Security (%) 100 | 100 100 100 100 100 Level 1 . | . . . . . Level 2 . | . . . . . Level 3 . | . . . . . Level 4 . | . . . . . Level 5 . | . . . . . High Security . | . . . . . Max Security . | . . . . . Peak Influence 167 | . 4 167 96 75 Initial 31 | . . . 3 31 Average 37 | . . 82 10 28 Influence Increases 863 | . 4 359 245 255 Destroy 0b10 Robot/C 540 | . . 260 140 140 Destroy 0b10 Robot/NC 10 | . . 5 . 5 Destroy Leader 102 | . . 62 20 20 Successful Hack 11 | . 4 7 . . Disable Machine 60 | . . . 60 . Destroy Structure 35 | . . 10 25 . Partial Spotted 45 | . . 15 . 30 Lose Combat Pursuer 60 | . . . . 60 Influence Decreases 843 | . 4 350 174 315 Entered New Map 55 | . . . 6 49 Time Decay 573 | . 4 330 108 131 Lost Part 215 | . . 20 60 135 Squads Dispatched 1 | . . 1 . . Investigation . | . . . . . Extermination . | . . . . . Reinforcement 1 | . . 1 . . Assault . | . . . . . Garrison . | . . . . . Intercept . | . . . . . Searches Triggered . | . . . . . Construction Impeded . | . . . . . Haulers Reinforced . | . . . . . Active Scanning Responses . | . . . . . Cargo Convoy Interrupts . | . . . . . Stealth | -11 -10 -9 -9 -8 --------- Run | Yrd Mat Mat Min Mat Distress Signals 4 | . . 4 . . Communications Jammed . | . . . . . Distress Signals . | . . . . . Times Spotted 69 | . 4 36 10 19 Peak Tracking Total 11 | . 2 11 4 7 Tactical Retreats 10 | . . 7 . 3 ECM-based Alert Blocks 9 | . . 9 . . Traps | -11 -10 -9 -9 -8 ------- Run | Yrd Mat Mat Min Mat Traps Triggered . | . . . . . Indirectly . | . . . . . Trap Hack Attempts . | . . . . . Triggered . | . . . . . Disarmed . | . . . . . Reprogrammed . | . . . . . Reused . | . . . . . Traps Extracted . | . . . . . Installed . | . . . . . Triggered . | . . . . . Machines | -11 -10 -9 -9 -8 ---------- Run | Yrd Mat Mat Min Mat Machines Disabled 4 | . . . 4 . Max in Single Turn 3 | . . . 3 . Machines Repaired . | . . . . . Machines Dismantled . | . . . . . Machines Sabotaged . | . . . . . Overloaded Fab Kills . | . . . . . Hacking | -11 -10 -9 -9 -8 --------- Run | Yrd Mat Mat Min Mat Machines Accessed 7 | . 2 5 . . Terminals 5 | . 2 3 . . Fabricators . | . . . . . Repair Stations 1 | . . 1 . . Recycling Units . | . . . . . Scanalyzers 1 | . . 1 . . Garrison Access . | . . . . . Total Hacks 21 | . 5 16 . . Successful 10 | . 1 9 . . Failed 11 | . 4 7 . . Catastrophic 1 | . 1 . . . Database Lockouts . | . . . . . Manual . | . . . . . Terminals 13 | . 5 8 . . Fabricators . | . . . . . Repair Stations 4 | . . 4 . . Recycling Units . | . . . . . Scanalyzers 4 | . . 4 . . Garrison Access . | . . . . . Terminal Hacks 5 | . 1 4 . . Record 1 | . . 1 . . Prototype ID Bank 1 | . . 1 . . Emergency Access Points 1 | . . 1 . . Alert Level 1 | . . 1 . . Locate Traps 1 | . 1 . . . Fabricator Hacks . | . . . . . Repair Station Hacks 3 | . . 3 . . Scan Component 2 | . . 2 . . Repair 1 | . . 1 . . Recycling Unit Hacks . | . . . . . Scanalyzer 2 | . . 2 . . Insert Component 1 | . . 1 . . Analyze 1 | . . 1 . . Garrison Access Hacks . | . . . . . Unauthorized Hacks . | . . . . . Terminals . | . . . . . Fabricators . | . . . . . Repair Stations . | . . . . . Recycling Units . | . . . . . Scanalyzers . | . . . . . Garrison Access . | . . . . . Data Cores Recovered . | . . . . . Used . | . . . . . Hacking Detections 6 | . 2 4 . . Full Trace Events 2 | . . 2 . . Feedback Events . | . . . . . Feedback Blocked . | . . . . . Robot Schematics Acquired . | . . . . . Robots Built . | . . . . . Authchips . | . . . . . Time . | . . . . . Total Robot Build Rating . | . . . . . Part Schematics Acquired 1 | . . 1 . . Parts Built . | . . . . . Authchips . | . . . . . Time . | . . . . . Total Part Build Rating . | . . . . . Part Studies Acquired . | . . . . . Parts Repaired 1 | . . 1 . . Time 26 | . . 26 . . Parts Recycled . | . . . . . Recycled Matter . | . . . . . Retrieved Matter . | . . . . . Retrieved Components . | . . . . . Parts Scanalyzed 1 | . . 1 . . Part Schematics Acquired 1 | . . 1 . . Parts Damaged . | . . . . . Bothacking | -11 -10 -9 -9 -8 ------------ Run | Yrd Mat Mat Min Mat Used RIF Installer . | . . . . . Robots Hacked . | . . . . . Non-combat . | . . . . . Combat . | . . . . . Robot Hacks Applied . | . . . . . Relay Couplers Released . | . . . . . Fabnet Peak Effective % . | . . . . . Robots Rewired . | . . . . . Allies Hacked . | . . . . . Hacks Repelled . | . . . . . Allies | -11 -10 -9 -9 -8 -------- Run | Yrd Mat Mat Min Mat Total Allies . | . . . . . Largest Group . | . . . . . Highest-Rated Group . | . . . . . Highest-Rated Ally . | . . . . . Total Orders . | . . . . . Ally Attacks . | . . . . . Total Damage . | . . . . . Kills . | . . . . . Allies Corrupted . | . . . . . Allies Melted . | . . . . . Intel | -11 -10 -9 -9 -8 ------- Run | Yrd Mat Mat Min Mat Active Infowar (turns) 1626 | . 234 654 619 119 Seismic 738 | . . . 619 119 ECM 888 | . 234 654 . . Robot Analysis Total . | . . . . . Derelict Logs Recovered 1 | . . . 1 . Drone Launches . | . . . . . Drone Recoveries . | . . . . . Exploration | -11 -10 -9 -9 -8 ------------- Run | Yrd Mat Mat Min Mat Turns Passed 2189 | 66 288 783 733 319 Spaces Moved 1006 | 44 138 420 341 63 Core 51 | 10 . 2 9 30 Treads 12 | . . . . 12 Legs 922 | 34 138 418 332 . Wheels 21 | . . . . 21 Hover . | . . . . . Flight . | . . . . . Fastest Speed 50 | 50 120 120 120 90 Average Speed 163 | 123 170 128 179 320 Slowest Speed 550 | 200 190 450 450 550 Overloaded Moves . | . . . . . Propulsion Burnouts . | . . . . . Robots Hopped . | . . . . . Potential Cave-ins . | . . . . . Cave-ins Triggered . | . . . . . Exploration Rate (%) 28 | 4 26 32 74 6 Regions Visited 4 Branch Regions 1 Pre-discovered Areas . | . . . . . Known Exits Taken . | . . . . . Unknown Exits Taken 4 | 1 1 1 1 . Scrap Searched 3 | . . . 3 . Spaces Dug 3 | . . . 3 . Terrain Destroyed 62 | . . 9 53 . Melee . | . . . . . Projectile 5 | . . . 5 . AOE 57 | . . 9 48 . Terrain Rammed . | . . . . . Walls Destroyed . | . . . . . Machines Disabled . | . . . . . Actions | -11 -10 -9 -9 -8 --------- Run | Yrd Mat Mat Min Mat Total 1374 | 52 191 592 406 133 Wait 173 | . 46 101 9 17 Move 1002 | 43 137 419 340 63 Hop . | . . . . . Pick Up 31 | 2 5 13 6 5 Fast Attach 10 | 6 . 1 . 3 Attach 27 | . 1 5 8 13 Detach 1 | . . . 1 . Swap 11 | 1 1 6 3 . Drop 4 | . 1 2 1 . Fire 101 | . . 44 33 24 Melee 12 | . . . 5 7 Ram 1 | . . . . 1 Kick 1 | . . 1 . . Crush . | . . . . . Escape Stasis . | . . . . . Rewire . | . . . . . Trap . | . . . . . Miscellaneous . | . . . . . Route ------- -11/Scrapyard -10/Materials (discovered 2 exits: *Mat / [*Min]) -9/Materials -9/Mines -8/Materials History --------- Turn | Location | Event 23 | -11/Scrapyard | Discovered new exit (range 15) 67 | -11/Scrapyard | Entered Materials 130 | -10/Materials | Discovered new exit (range 11) 259 | -10/Materials | Discovered new exit (range 12) 313 | -10/Materials | Build established: Mutant 355 | -10/Materials | Entered another Materials area 355 | -9/Materials | Evolved 2 slots: Propulsion x2 969 | -9/Materials | Repaired Aluminum Leg 1120 | -9/Materials | Discovered new exit (range 16) 1138 | -9/Materials | Entered Mines 1144 | -9/Mines | YI-UF0 nonchalantly dropped a Grenade Launcher on the ground 1158 | -9/Mines | Core integrity fell below 50% 1168 | -9/Mines | Destroyed YI-UF0 1196 | -9/Mines | Lost 5 parts (1p2n2w) 1464 | -9/Mines | Learned Materials terminal intel 1793 | -9/Mines | Core integrity fell below 20% 1832 | -9/Mines | Discovered new exit (range 10) 1845 | -9/Mines | Lost 4 parts (1p2n1w) 1871 | -9/Mines | Entered Materials 1871 | -8/Materials | Evolved 2 slots: Power x1, Utility x1 1872 | -8/Materials | Loaded intel: 12 terminal locations 2025 | -8/Materials | Lost 3 parts (1p1u1w) 2114 | -8/Materials | Core integrity fell below 50% 2149 | -8/Materials | Core integrity fell below 20% 2190 | -8/Materials | Destroyed by G-50 Soldier with Heavy Laser Last Messages --------------- Acquired 10 matter. K-01 Serf collects debris. Maul destroyed. K-01 Serf collects debris. Sneak attack on K-01 Serf. Jacked K-01 Serf... >>find_chute No applicable chute records found in memory. [Achievement: Junior Dev] U-05 Engineer builds a Door. Sneak attack on K-01 Serf. Jacked K-01 Serf... Wheel destroyed. K-01 Serf collects debris. Slammed into U-05 Engineer. Destabilizing: System corrupted (+2). Acquired Adv. Treads. Tractor Beam destroyed. Acquired Adv. Treads. Com. Wheel destroyed. Map ----- +----------------------------------------------------+ | ?????????????????????????????????????????????????? | | ?????????????????????????????????????????????????? | | ?????????????????????????????????????????????????? | | ?????????????????????????????????????????????????? | | ?????????????????????????????????????????????????? | | ?????????????????????????????????????????????????? | | ?????????????????????????????????????????????????? | | ?????????????????????????????????????????????????? | | ????????????????? ?????????????????????????????"" | | ????????????????? ?????????????????????????????"T | | ????????????????? ?????????????????????????????"" | | ????????????????# ?????"T"??????????????????????? | | ????????????????# ??????????????????????????????? | | ????????????????# ??????????????????????????????? | | ????????????????# ??????????????????????????????? | | ????????????????# #?????????????????????????????? | | ?????????????T??# #?????????????????????????????? | | ????????????????# #?????????????????????????????? | | ????????????????# #?????????????????????????????? | | ????????????????# #?????????????????????????????? | | ????????????????# #?????????????????????????????? | | ????????????????# #?????????????????????????????? | | ????????????????+ ##############????????????????? | | ????????????????# gg% a #????????????????? | | ????????????????##%#g # " w ?????????? | | ?????????????????#%# @ ! w/ "T ???????????? | | ?????????????????# # ! # k ???????? | | ????????##########%# =! = #????????????????? | | ????????# ## ##############????????????????? | | ????????# ##/########??????????????????????? | | ????????# # #??????????????????????? | | ????????##### # #??????????????????????? | | ????????????# # #??????????????????????? | | ????????????# % #% #??????????????????????? | | ????????????# %+ #??????????????????????? | | ????????????# # % #??????????????????????? | | ????????????# # #??????????????????????? | | ????????????# # #??????????????????????? | | ????????????# ##+########??????????????????????? | | ????????????# ## #?????????????????????????????? | | ????????????# ## #?????????????????????????????? | | ????????????# ## #?????????????????????????????? | | ????????????# ## ?????????????????????????????? | | ????????????# ####?????????????????????????????? | | ????????????# #????????????????????????????????? | | ???"???????? ?????????????????????????????????? | | ???T???????? ?????????????????????????????????? | | ???"???????? T ?????????????????????????????????? | | ???????????? ?????????????????????????????????? | | ???????????# ? ?????????????????????????????????? | +----------------------------------------------------+ Best States ------------- Heat Dissipation 31 Energy Generation 15 Energy Capacity 400 Matter Stores 300 Matter Capacity 300 Sight Range 16 Terrain Scan Density 10 ECM Strength 1 Evasion (%) 55 Recoil Reduction 2 Item Schematics ----------------- Seismic Detector | -9/Materials | Scanalyzed Robot Schematics ------------------ None Fabricated ------------ Nothing Repaired ---------- Aluminum Leg | 5% | -9/Materials Studied --------- None Alien Tech Used ----------------- None Achievements -------------- Close Call Junior Dev Part-time Mechanic Challenges ------------ None Game ------ Seed BlastActiveTrap Manual? 0 Play Time 00:30:22 Cumulative 6.6 hours Start 2026.07.06 @ 22:28:34 End 2026.07.06 @ 22:57:41 Sessions 1 Manual Loads 0 Difficulty Rogue Special Mode None Game No. 9 Rogue 9 Adventurer 0 Explorer 0 Win Type - Total 0 Types 0/0/0/0/0/0/0/0/0/0 Lore% 6 Gallery% 8 Achievement% 7 Wizard Run 0 Options --------- Layout 2 ASCII 0 Keyboard 0 Movement Mouse Keybinds 0 Fullscreen 1 Font 24/Proggy Map View 50x44 Zoom Use 0% Tactical HUD 0 Map Filters NONE Filters NONE Steam 1 RUN: 4f396426-bff0-4881-9b03-60f4413bd00a